bitfinex/quotes_SOLUSD_20240913
["timestamp","ask_amount","ask_price","bid_price","bid_amount"]
[1726249701018,1.71348889,137.81,137.71,35.43917817]
[1726249701208,8.96998889,137.81,137.71,35.43917817]
[1726249702804,8.96525409,137.8,137.71,35.43917817]
[1726249702995,1.58286409,137.8,137.71,35.43917817]
[1726249703202,0.2561148,137.81,137.74,35.43917817]
[1726249704815,1.71348889,137.81,137.72,6.4121]
[1726249705035,0.2561148,137.81,137.72,41.85127817]
[1726249705527,0.2561148,137.81,137.74,35.43917817]
[1726249706529,0.2561148,137.81,137.72,6.4121]
[1726249708230,7.5125148,137.81,137.73,22.16236806]
[1726249708410,0.2561148,137.81,137.73,22.16236806]
[1726249708927,24.0329988,137.81,137.73,22.16236806]
[1726249709128,1.45737409,137.8,137.71,20.0]
[1726249709298,0.2561148,137.81,137.73,22.16236806]
[1726249710609,24.0329988,137.81,137.71,22.16236806]
[1726249710927,0.2561148,137.81,137.73,22.16236806]
[1726249712118,0.2561148,137.81,137.71,22.16236806]
[1726249712520,0.2561148,137.81,137.73,22.16236806]
[1726249714111,0.12549,137.8,137.71,22.16236806]
[1726249714512,0.12549,137.8,137.71,21.66236806]
[1726249715404,0.25098,137.8,137.71,21.66236806]
[1726249715825,0.25098,137.8,137.71,23.11440897]
[1726249716010,0.12549,137.8,137.73,22.16236806]
[1726249716205,0.25098,137.8,137.73,22.16236806]
[1726249716399,0.12549,137.8,137.73,22.16236806]
[1726249716802,24.027864,137.8,137.73,22.16236806]
[1726249717003,0.12549,137.8,137.73,22.16236806]
[1726249717423,0.12549,137.8,137.71,22.16236806]
[1726249718123,0.12549,137.8,137.72,1.45207676]
[1726249718307,0.2561148,137.81,137.73,22.16236806]
[1726249718513,1.71348889,137.81,137.73,22.16236806]
[1726249718712,1.45737409,137.8,137.73,22.16236806]
[1726249719225,0.2561148,137.81,137.73,22.16236806]
[1726249719226,1.45737409,137.79,137.73,22.16236806]
[1726249719533,1.45737409,137.79,137.7,0.12549]
[1726249719534,1.45737409,137.78,137.71,22.16236806]
[1726249719822,24.0329988,137.81,137.71,22.16236806]
[1726249720022,0.12549,137.8,137.71,22.16236806]
[1726249720235,0.12549,137.8,137.72,1.45195528]
[1726249721310,0.12549,137.8,137.71,22.16236806]
[1726249722139,24.0329988,137.81,137.73,22.16236806]
[1726249722432,0.2561148,137.81,137.73,22.16236806]
[1726249722606,23.776884,137.8,137.71,22.16236806]
[1726249722811,0.3816048,137.81,137.71,22.16236806]
[1726249723021,0.3816048,137.81,137.73,22.16236806]
[1726249723217,24.1584888,137.81,137.73,22.16236806]
[1726249724536,24.1584888,137.81,137.71,22.16236806]
[1726249725209,24.1584888,137.81,137.73,22.16236806]
[1726249726222,0.3816048,137.81,137.73,22.16236806]
[1726249726427,0.2561148,137.81,137.73,22.16236806]
[1726249727210,1.71348889,137.81,137.73,22.16236806]
[1726249728319,0.2561148,137.81,137.7,24.027864]
[1726249728627,0.2561148,137.81,137.68,6.1318]
[1726249728628,23.776884,137.79,137.71,14.18369047]
[1726249728855,1.45737409,137.78,137.71,14.18369047]
[1726249730428,6.0001,137.77,137.69,7.57567735]
[1726249730619,1.45737409,137.76,137.71,14.18369047]
[1726249731113,15.89569,137.8,137.69,50.0]
[1726249731114,15.7702,137.8,137.69,50.0]
[1726249731319,15.7702,137.8,137.77,14.18369047]
[1726249732710,0.2561148,137.81,137.79,14.18369047]
[1726249732922,0.2561148,137.81,137.8,14.18369047]
[1726249736128,0.2561148,137.81,137.76,0.12549]
[1726249736129,0.2561148,137.81,137.78,22.14502941]
[1726249740536,0.2561148,137.81,137.77,20.0]
[1726249741536,0.2561148,137.81,137.76,22.14502941]
[1726249742330,0.2561148,137.81,137.78,22.14502941]
[1726249751739,0.2561148,137.81,137.79,1.44961441]
[1726249751947,0.2561148,137.81,137.8,1.44950921]
[1726249752335,0.2561148,137.81,137.8,23.59453862]
[1726249753531,0.2561148,137.81,137.8,22.14502941]
[1726249754652,0.2561148,137.81,137.8,66.17289341]
[1726249754953,0.2561148,137.81,137.8,42.14502941]
[1726249757174,0.2561148,137.81,137.8,66.17289341]
[1726249758252,0.2561148,137.81,137.8,34.16854439]
[1726249758631,0.2561148,137.81,137.77,0.12549]
[1726249758832,0.2561148,137.81,137.8,14.16854439]
[1726249760840,0.2561148,137.81,137.75,24.61042401]
[1726249761053,0.2561148,137.81,137.79,14.16854439]
[1726249761856,0.2561148,137.81,137.8,14.16854439]
[1726249764657,0.2561148,137.81,137.76,20.0]
[1726249764858,0.2561148,137.81,137.79,14.16854439]
[1726249765455,0.2561148,137.81,137.76,20.0]
[1726249765854,0.2561148,137.81,137.8,14.16854439]
[1726249769089,0.2561148,137.85,137.8,14.16854439]
[1726249769246,0.2561148,137.85,137.84,14.16854439]
[1726249775563,0.2561148,137.85,137.82,14.16854439]
[1726249775767,1.71348889,137.85,137.82,14.16854439]
[1726249776667,0.2561148,137.85,137.82,14.16854439]
[1726249777952,0.2561148,137.85,137.83,14.16854439]
[1726249779359,0.2561148,137.85,137.84,14.16854439]
[1726249780163,0.2561148,137.85,137.8,20.0]
[1726249780367,0.2561148,137.85,137.83,14.16854439]
[1726249780548,0.2561148,137.85,137.84,14.16854439]
[1726249780745,0.2561148,137.85,137.83,14.16854439]
[1726249780965,0.2561148,137.85,137.82,14.16854439]
[1726249781152,0.2561148,137.85,137.83,14.16854439]
[1726249781576,0.2561148,137.85,137.79,20.0]
[1726249781756,1.71348889,137.85,137.75,24.0277418]
[1726249782064,0.2561148,137.85,137.81,14.16854439]
[1726249782258,0.2561148,137.85,137.77,30.0]
[1726249782259,0.2561148,137.85,137.82,14.16854439]
[1726249783949,0.2561148,137.85,137.81,14.16854439]
[1726249784170,0.2561148,137.85,137.83,14.16854439]
[1726249784469,0.2561148,137.85,137.82,14.16854439]
[1726249784851,0.2561148,137.85,137.75,74.15516212]
[1726249784852,0.2561148,137.85,137.83,14.16854439]
[1726249785466,0.2561148,137.85,137.82,14.16854439]
[1726249787087,0.2561148,137.85,137.83,14.16854439]
[1726249787380,0.2561148,137.85,137.82,14.16854439]
[1726249789078,0.2561148,137.85,137.78,44.027864]
[1726249789376,0.2561148,137.85,137.82,14.16854439]
[1726249789678,0.2561148,137.85,137.83,14.16854439]
[1726249790064,0.2561148,137.85,137.78,44.027864]
[1726249790260,0.2561148,137.85,137.8,14.16854439]
[1726249790572,1.71348889,137.85,137.8,14.16854439]
[1726249791153,0.2561148,137.85,137.75,24.02967212]
[1726249791356,0.2561148,137.85,137.79,14.16854439]
[1726249794480,0.2561148,137.85,137.76,43.776884]
[1726249794670,1.71348889,137.85,137.79,14.16854439]
[1726249794869,0.2561148,137.85,137.79,14.16854439]
[1726249796077,0.2561148,137.85,137.75,24.02967212]
[1726249796390,0.2561148,137.85,137.78,14.16854439]
[1726249797694,0.2561148,137.85,137.75,24.02967212]
[1726249797884,21.71349,137.84,137.76,14.16854439]
[1726249798188,1.45737409,137.83,137.76,14.16854439]
[1726249798378,1.45737409,137.82,137.76,14.16854439]
[1726249798902,1.45737409,137.82,137.72,24.38094478]
[1726249799193,21.588,137.84,137.8,14.16854439]
[1726249799564,21.588,137.84,137.79,14.16854439]
[1726249800175,1.45737409,137.83,137.78,14.16854439]
[1726249800485,21.588,137.84,137.78,14.16854439]
[1726249800686,21.588,137.84,137.79,14.16854439]
[1726249801071,21.588,137.84,137.8,14.16854439]
[1726249802188,23.04537409,137.84,137.79,14.16854439]
[1726249803373,21.588,137.84,137.79,14.16854439]
[1726249803993,21.588,137.84,137.8,14.16854439]
[1726249804468,21.588,137.84,137.79,14.16854439]
[1726249804798,21.588,137.84,137.8,14.16854439]
[1726249807080,21.588,137.84,137.79,14.16854439]
[1726249807279,21.588,137.84,137.8,14.16854439]
[1726249808094,15.1279,137.84,137.81,14.16854439]
[1726249808681,15.1279,137.84,137.8,14.16854439]
[1726249808999,15.1279,137.84,137.76,20.0]
[1726249809180,15.1279,137.84,137.73,65.73772632]
[1726249809181,1.45737409,137.83,137.78,14.16854439]
[1726249809384,1.45737409,137.83,137.77,14.16854439]
[1726249809882,1.45737409,137.82,137.73,15.73772632]
[1726249810091,6.6195,137.81,137.73,15.73772632]
[1726249810294,1.45737409,137.8,137.75,14.16854439]
[1726249810499,17.69227409,137.79,137.69,8.14922401]
[1726249810804,17.69227409,137.79,137.72,14.16854439]
[1726249811105,16.2349,137.79,137.7,0.2561148]
[1726249811307,0.12549,137.78,137.71,14.16854439]
[1726249812385,0.25098,137.78,137.71,14.16854439]
[1726249812785,8.96645409,137.78,137.71,14.16854439]
[1726249813096,6.3263,137.77,137.7,14.42465919]
[1726249813300,1.45737409,137.76,137.7,14.42465919]
[1726249813501,1.45737409,137.75,137.7,14.42465919]
[1726249813700,0.12549,137.76,137.7,0.2561148]
[1726249814003,6.3263,137.77,137.7,0.2561148]
[1726249814307,0.12549,137.76,137.7,0.2561148]
[1726249814479,1.58286409,137.76,137.7,0.2561148]
[1726249814692,0.12549,137.76,137.7,14.42465919]
[1726249815701,0.12549,137.76,137.7,0.2561148]
[1726249816210,15.2211,137.75,137.7,0.2561148]
[1726249816907,6.3263,137.77,137.7,0.2561148]
[1726249816908,6.3263,137.77,137.72,14.16854439]
[1726249817095,6.3263,137.77,137.73,14.16854439]
[1726249817300,6.3263,137.77,137.72,14.16854439]
[1726249818080,6.3263,137.77,137.71,14.16854439]
[1726249818298,6.3263,137.77,137.7,14.42465919]
[1726249818499,6.3263,137.77,137.71,14.68455942]
[1726249818708,6.3263,137.77,137.72,14.73799829]
[1726249819009,6.3263,137.77,137.72,14.16854439]
[1726249819704,6.3263,137.77,137.71,14.16854439]
[1726249819919,0.12549,137.76,137.71,14.16854439]
[1726249820083,6.3263,137.77,137.7,14.42465919]
[1726249821801,6.3263,137.77,137.7,0.2561148]
[1726249821802,1.70835409,137.76,137.7,0.2561148]
[1726249822007,9.09284409,137.76,137.7,0.2561148]
[1726249822393,0.25098,137.74,137.7,0.2561148]
[1726249822708,15.33109,137.73,137.7,0.2561148]
[1726249822902,1.45737409,137.72,137.7,0.2561148]
[1726249823306,0.12549,137.72,137.7,0.2561148]
[1726249823482,1.58286409,137.72,137.7,0.2561148]
[1726249823687,6.63728,137.71,137.7,0.2561148]
[1726249824197,1.45737409,137.72,137.7,0.2561148]
[1726249824404,15.2056,137.73,137.7,0.2561148]
[1726249825410,24.027864,137.71,137.7,0.2561148]
[1726249825714,24.153354,137.71,137.7,0.2561148]
[1726249826492,30.709054,137.71,137.7,0.2561148]
[1726249826825,15.099,137.67,137.66,0.2561148]
[1726249827115,15.22449,137.67,137.66,0.2561148]
[1726249827313,15.34998,137.67,137.66,0.2561148]
[1726249828397,39.252354,137.67,137.66,0.2561148]
[1726249828595,15.47547,137.67,137.66,0.2561148]
[1726249828796,15.099,137.67,137.66,0.2561148]
[1726249829009,15.22449,137.67,137.66,0.2561148]
[1726249829322,15.34998,137.67,137.66,0.2561148]
[1726249829615,39.252354,137.67,137.66,0.2561148]
[1726249829994,54.46212809,137.67,137.66,0.2561148]
[1726249830413,45.741054,137.67,137.66,0.2561148]
[1726249830720,54.46212809,137.67,137.66,0.2561148]
[1726249830900,54.46212809,137.67,137.62,0.2561148]
[1726249830901,31.292364,137.66,137.62,0.2561148]
[1726249831099,24.027864,137.64,137.62,0.2561148]
[1726249831299,25.61072809,137.63,137.62,0.2561148]
[1726249831499,24.153354,137.63,137.62,0.2561148]
[1726249833604,47.882254,137.63,137.62,0.2561148]
[1726249833807,49.33962809,137.63,137.62,0.2561148]
[1726249834024,40.616454,137.63,137.62,0.2561148]
[1726249839630,42.07382809,137.63,137.62,0.2561148]
[1726249843134,49.33962809,137.63,137.62,0.2561148]
[1726249843431,47.882254,137.63,137.62,0.2561148]
[1726249845529,15.9166,137.62,137.58,0.2561148]
[1726249845737,24.027864,137.59,137.58,0.2561148]
[1726249846026,24.153354,137.59,137.58,0.2561148]
[1726249846226,31.421254,137.59,137.58,0.2561148]
[1726249846615,32.87862809,137.59,137.58,0.2561148]
[1726249847431,31.421254,137.59,137.58,0.2561148]
[1726249847934,32.87862809,137.59,137.58,0.2561148]
[1726249848440,31.421254,137.59,137.58,0.2561148]
[1726249851942,24.153354,137.59,137.58,0.2561148]
[1726249852116,31.421254,137.59,137.58,0.2561148]
[1726249852710,24.153354,137.59,137.58,0.2561148]
[1726249852929,7.267,137.61,137.58,0.2561148]
[1726249854333,7.2675,137.6,137.58,0.2561148]
[1726249854534,25.23425809,137.59,137.58,0.2561148]
[1726249854739,24.153354,137.59,137.58,0.2561148]
[1726249854940,0.37647,137.59,137.58,0.2561148]
[1726249855126,1.83384409,137.59,137.58,0.2561148]
[1726249856628,31.421254,137.59,137.58,0.2561148]
[1726249856834,24.153354,137.59,137.58,0.2561148]
[1726249857146,32.87862809,137.59,137.58,0.2561148]
[1726249857515,31.421254,137.59,137.58,0.2561148]
[1726249858626,32.87862809,137.59,137.58,0.2561148]
[1726249859626,24.027864,137.55,137.54,0.2561148]
[1726249859831,31.423354,137.55,137.54,0.2561148]
[1726249860040,31.423354,137.55,137.5,0.2561148]
[1726249860041,7.2718,137.52,137.5,0.2561148]
[1726249860228,25.61072809,137.51,137.5,0.2561148]
[1726249860542,32.88282809,137.51,137.5,0.2561148]
[1726249860769,32.88282809,137.51,137.45,0.2561148]
[1726249860921,23.902374,137.48,137.45,0.2561148]
[1726249861123,1.58286409,137.47,137.45,0.2561148]
[1726249861532,31.177174,137.46,137.45,0.2561148]
[1726249861733,31.177174,137.46,137.38,22.7992]
[1726249861734,31.302664,137.46,137.38,22.7992]
[1726249861963,31.302664,137.46,137.45,0.1116312]
[1726249862123,31.428154,137.46,137.45,0.1116312]
[1726249862324,7.52578,137.46,137.45,0.1116312]
[1726249862526,0.37647,137.46,137.45,0.1116312]
[1726249863027,0.12549,137.46,137.45,0.1116312]
[1726249863435,13.8508,137.51,137.45,0.1116312]
[1726249863732,31.175174,137.5,137.45,0.1116312]
[1726249864147,23.902374,137.5,137.45,0.1116312]
[1726249864341,23.776884,137.48,137.45,0.1116312]
[1726249864527,0.12549,137.47,137.45,0.1116312]
[1726249864731,0.12549,137.46,137.45,0.1116312]
[1726249865045,24.027864,137.46,137.45,0.1116312]
[1726249865351,24.153354,137.46,137.45,0.1116312]
[1726249865934,0.12549,137.46,137.45,0.1116312]
[1726249866140,24.027864,137.5,137.45,0.1116312]
[1726249866333,24.027864,137.48,137.45,0.1116312]
[1726249866657,0.12549,137.47,137.45,0.1116312]
[1726249867835,6.53899477,137.46,137.45,0.1116312]
[1726249868030,19.56632436,137.53,137.45,0.1116312]
[1726249868231,6.53899594,137.52,137.45,0.1116312]
[1726249868430,23.8081,137.54,137.45,15.9470312]
[1726249868431,6.53899594,137.51,137.45,15.9470312]
[1726249868647,23.8081,137.54,137.45,22.4356312]
[1726249868648,6.53899594,137.5,137.45,22.4356312]
[1726249868840,6.53899594,137.49,137.45,22.4356312]
[1726249869041,6.53899594,137.48,137.45,22.4356312]
[1726249869355,7.27,137.55,137.45,22.4356312]
[1726249869534,6.53669838,137.54,137.45,22.4356312]
[1726249869857,6.53669838,137.53,137.45,22.4356312]
[1726249870060,6.53669838,137.52,137.46,0.12549]
[1726249870352,6.53669838,137.51,137.46,23.902374]
[1726249870544,1.45737409,137.56,137.45,22.4356312]
[1726249870740,7.99359428,137.55,137.45,22.4356312]
[1726249870940,13.80732019,137.54,137.45,22.4356312]
[1726249871160,6.53622019,137.53,137.45,22.4356312]
[1726249871346,7.2712,137.53,137.45,22.4356312]
[1726249871534,6.53736902,137.52,137.45,22.4356312]
[1726249871735,6.66285902,137.51,137.46,1.45459648]
[1726249872060,6.53736902,137.5,137.45,22.4356312]
[1726249872238,6.53736902,137.49,137.45,22.4356312]
[1726249872435,6.53736902,137.48,137.45,22.4356312]
[1726249872639,6.53736902,137.47,137.45,22.4356312]
[1726249872855,7.2707,137.54,137.45,22.4356312]
[1726249873047,0.12549,137.52,137.45,22.4356312]
[1726249873232,0.25098,137.5,137.45,22.4356312]
[1726249873436,6.66261015,137.49,137.45,22.4356312]
[1726249873636,6.53712015,137.48,137.45,22.4356312]
[1726249873849,6.53712015,137.47,137.45,22.4356312]
[1726249874044,6.53712015,137.46,137.45,15.9470312]
[1726249874252,6.53712015,137.46,137.45,0.1116312]
[1726249875840,6.66261015,137.46,137.45,0.1116312]
[1726249876037,30.69047415,137.46,137.45,0.1116312]
[1726249876235,39.42264824,137.46,137.45,0.1116312]
[1726249876548,0.25098,137.43,137.42,0.327774]
[1726249876750,6.53712015,137.43,137.42,0.327774]
[1726249877733,6.53712015,137.45,137.42,0.327774]
[1726249877930,6.53712015,137.44,137.42,0.327774]
[1726249878145,6.53712015,137.43,137.42,0.327774]
[1726249879637,7.99449424,137.43,137.42,0.327774]
[1726249879848,0.25098,137.42,137.25,58.0951654]
[1726249880152,0.25098,137.42,137.1,0.327774]
[1726249880153,0.12549,137.09,136.8,13.89676319]
[1726249880457,7.01082447,137.08,136.9,50.0]
[1726249880662,7.01082447,136.95,136.8,6.3845]
[1726249880843,7.01082447,136.89,136.84,0.4826803]
[1726249881034,1.58286409,136.94,136.84,0.4826803]
[1726249881035,1.70835409,136.94,136.84,0.4826803]
[1726249881239,1.45737409,136.93,136.84,0.4826803]
[1726249881441,24.027864,137.0,136.85,8.2500859]
[1726249881639,24.027864,136.98,136.85,7.42531224]
[1726249881866,16.06640346,136.97,136.86,1.46030161]
[1726249882080,14.62551848,136.96,136.85,7.42531224]
[1726249882361,14.62551848,136.96,136.84,0.4826803]
[1726249882362,9.10394443,136.89,136.87,6.71109946]
[1726249882569,14.62551848,136.88,136.87,6.71109946]
[1726249882871,14.62551848,136.88,136.84,0.4826803]
[1726249883037,12.79912796,136.87,136.84,0.4826803]
[1726249883238,9.14223426,136.87,136.85,85.89062733]
[1726249883640,4.09112751,136.86,136.85,85.89062733]
[1726249883856,9.10321183,136.99,136.85,85.89062733]
[1726249884041,416.66453662,137.13,136.85,85.89062733]
[1726249884042,30.82018701,136.98,136.88,85.89062733]
[1726249884240,30.82018701,136.97,136.88,85.89062733]
[1726249884441,34.47664732,136.96,136.88,85.89062733]
[1726249884644,10.80289608,136.95,136.87,20.0]
[1726249884842,1.45737409,137.01,136.86,20.0]
[1726249884843,10.80289608,136.94,136.86,20.0]
[1726249885056,10.80289608,136.93,136.86,70.0]
[1726249885258,7.56970632,137.04,136.86,70.0]
[1726249885259,10.80289608,136.92,136.86,70.0]
[1726249885562,10.80289608,136.91,136.89,20.0]
[1726249885864,10.80289608,136.9,136.85,35.89062733]
[1726249886050,25.12735842,137.03,136.85,35.89062733]
[1726249886051,11.41708992,136.89,136.85,35.89062733]
[1726249886251,11.41708992,136.88,136.84,0.4826803]
[1726249886561,7.76058122,136.87,136.84,0.4826803]
[1726249886740,24.027864,137.0,136.86,35.89062733]
[1726249886945,24.027864,136.98,136.86,35.89062733]
[1726249887244,7.56970632,137.04,136.87,50.0]
[1726249887447,7.56970632,137.04,136.85,35.89062733]
[1726249887448,5.11376644,137.03,136.89,35.89062733]
[1726249887656,5.11376644,137.03,136.85,35.89062733]
[1726249887657,3.65639235,137.02,136.85,35.89062733]
[1726249887864,5.11376644,137.01,136.86,20.0]
[1726249888045,3.65639235,137.0,136.87,23.902374]
[1726249888364,1.45737409,136.99,136.91,59.91849133]
[1726249888554,7.56970632,137.04,136.91,59.91849133]
[1726249888555,1.45737409,137.03,136.91,59.66751133]
[1726249888760,3.65602954,137.02,136.91,23.776884]
[1726249888945,5.11340363,137.01,136.91,23.776884]
[1726249889262,1.45737409,137.01,136.91,23.776884]
[1726249889763,1.45737409,137.01,136.92,0.25098]
[1726249889974,1.56217502,137.0,136.91,59.66751133]
[1726249890274,1.56217502,137.0,136.83,50.0]
[1726249890568,1.56217502,137.0,136.81,2.0761727]
[1726249890760,11.56217502,137.0,136.81,2.0761727]
[1726249891067,10.12549,136.97,136.81,2.0761727]
[1726249891369,0.12549,136.94,136.81,2.0761727]
[1726249891555,0.12549,136.92,136.81,2.0761727]
[1726249891755,23.776884,136.91,136.81,2.0761727]
[1726249891946,0.10480093,136.96,136.81,2.0761727]
[1726249892149,24.027864,136.95,136.81,2.0761727]
[1726249892371,24.027864,136.93,136.81,2.0761727]
[1726249892573,1.45737409,136.92,136.81,2.0761727]
[1726249892750,0.10480093,136.94,136.85,20.0]
[1726249892952,0.10480093,136.94,136.87,35.89062733]
[1726249893466,0.10480093,136.94,136.84,50.4826803]
[1726249893467,0.10480093,136.94,136.84,20.4826803]
[1726249893662,0.10480093,136.94,136.85,0.12549]
[1726249894467,0.10480093,136.94,136.85,0.25098]
[1726249895181,0.10480093,136.94,136.84,0.4826803]
[1726249895856,0.12549,136.92,136.84,0.4826803]
[1726249896061,0.12549,136.9,136.84,2.558853]
[1726249896250,0.10480093,136.91,136.86,35.89062733]
[1726249896455,7.54760775,136.99,136.89,35.89062733]
[1726249896751,44.05891512,137.06,136.92,35.89062733]
[1726249896752,7.569706,137.06,136.92,35.89062733]
[1726249896960,1.45737409,137.01,136.92,35.89062733]
[1726249897167,7.56632288,137.06,136.92,37.96680003]
[1726249897354,1.45737409,137.01,136.92,37.96680003]
[1726249898079,7.56632288,137.06,136.95,35.89062733]
[1726249898254,1.45737409,137.09,136.95,35.89062733]
[1726249898453,7.56601723,137.08,136.95,35.89062733]
[1726249898675,1.45737409,137.07,136.93,59.79300133]
[1726249898863,1.45737409,137.06,136.94,23.902374]
[1726249899063,7.56601723,137.08,136.96,35.89062733]
[1726249899684,6.5037,137.1,136.96,35.89062733]
[1726249899989,14.274535,137.1,136.96,35.89062733]
[1726249900156,14.274535,137.1,136.97,58.24584779]
[1726249900360,14.274535,137.1,137.0,58.24584779]
[1726249900662,14.274535,137.1,136.96,1.5934924]
[1726249900663,1.45737409,137.09,136.96,1.5934924]
[1726249901557,24.027864,137.08,136.96,1.5934924]
[1726249901760,24.027864,137.06,136.96,1.5934924]
[1726249902086,0.12549,137.05,136.96,1.5934924]
[1726249902257,1.45737409,137.09,136.97,58.24584779]
[1726249903259,6.5037,137.1,137.0,58.24584779]
[1726249904186,6.5037,137.1,137.0,59.83934019]
[1726249904389,7.56528275,137.11,137.0,59.83934019]
[1726249904560,1.45737409,137.11,137.0,59.83934019]
[1726249904763,1.45737409,137.12,137.0,59.83934019]
[1726249905891,1.45737409,137.12,137.0,1.5934924]
[1726249906059,24.027864,137.11,137.0,1.5934924]
[1726249906259,0.12549,137.1,137.0,1.5934924]
[1726249907765,17.0671,137.13,137.0,1.5934924]
[1726249908094,18.52447409,137.13,137.0,1.5934924]
[1726249908960,18.52447409,137.13,137.0,59.83934019]
[1726249909178,18.52447409,137.13,137.01,0.25098]
[1726249909380,18.52447409,137.13,137.0,1.5934924]
[1726249909761,9.17226786,137.12,137.0,1.5934924]
[1726249909992,1.45737409,137.11,137.0,1.5934924]
[1726249910191,9.17226786,137.12,137.0,1.5934924]
[1726249910396,24.153354,137.11,137.0,1.5934924]
[1726249911891,0.37647,137.11,137.0,1.5934924]
[1726249912196,23.776884,137.1,137.0,1.5934924]
[1726249912389,24.027864,137.08,137.0,1.5934924]
[1726249912591,0.12549,137.06,137.0,1.5934924]
[1726249912769,23.902374,137.06,137.0,1.5934924]
[1726249912975,1.58286409,137.05,137.0,1.5934924]
[1726249913203,1.45737409,137.04,137.0,1.5934924]
[1726249914090,0.12549,137.05,137.0,1.5934924]
[1726249914605,23.776884,137.04,137.0,1.5934924]
[1726249914797,1.45737409,137.03,137.0,1.5934924]
[1726249915110,0.12549,137.05,137.0,1.5934924]
[1726249915286,7.57339828,137.1,137.0,1.5934924]
[1726249915603,1.45737409,137.16,137.0,59.83934019]
[1726249915809,1.45737409,137.16,137.01,20.0]
[1726249915810,1.45737409,137.12,137.01,20.0]
[1726249916304,1.45737409,137.12,137.01,21.1108121]
[1726249916876,0.12549,137.11,137.01,21.1108121]
[1726249917392,0.25098,137.11,137.01,21.1108121]
[1726249917586,0.12549,137.09,137.01,21.1108121]
[1726249917793,0.12549,137.09,137.01,1.1108121]
[1726249917794,0.25098,137.09,137.01,1.1108121]
[1726249917979,1.45737409,137.08,137.01,1.1108121]
[1726249918184,1.58286409,137.07,137.01,1.1108121]
[1726249918382,23.902374,137.06,137.01,1.1108121]
[1726249918610,1.45737409,137.05,137.01,1.1108121]
[1726249918796,0.12549,137.06,137.01,1.1108121]
[1726249919403,1.58286409,137.06,137.01,1.1108121]
[1726249919612,0.25098,137.04,137.01,1.1108121]
[1726249919795,25.58231606,137.03,137.01,1.1108121]
[1726249920003,1.45737409,137.02,137.01,1.1108121]
[1726249920515,0.12549,137.02,137.01,1.1108121]
[1726249920812,1.58286409,137.02,137.01,1.1108121]
[1726249921386,25.35974809,137.02,137.01,1.1108121]
[1726249921582,25.61072809,137.02,137.01,1.1108121]
[1726249921788,24.153354,137.02,136.92,0.4826803]
[1726249922085,25.83329606,137.01,137.0,0.4826803]
[1726249922280,25.83329606,137.01,136.92,0.4826803]
[1726249922281,34.58937015,137.01,136.92,0.4826803]
[1726249922519,24.027864,136.99,136.92,0.4826803]
[1726249922811,24.027864,136.97,136.92,0.4826803]
[1726249923014,1.80543206,136.96,136.92,0.4826803]
[1726249923213,1.67994206,136.96,136.92,0.4826803]
[1726249923514,1.67994206,136.96,136.92,0.2152514]
[1726249924035,1.67994206,136.96,136.93,20.25098]
[1726249924227,1.67994206,136.96,136.92,23.9921354]
[1726249924228,1.67994206,136.96,136.92,0.2152514]
[1726249925215,16.8985576,136.95,136.92,0.2152514]
[1726249925420,6.3577,137.05,136.92,0.2152514]
[1726249925421,18.57849966,136.94,136.92,0.2152514]
[1726249925720,1.67994206,136.94,136.92,0.2152514]
[1726249926027,10.39603033,136.93,136.92,0.2152514]
[1726249926391,27.29145267,136.93,136.92,0.2152514]
[1726249927025,27.41694267,136.93,136.92,0.2152514]
[1726249927194,16.89542234,136.93,136.92,0.2152514]
[1726249927532,40.79779634,136.93,136.92,0.2152514]
[1726249928032,42.38066043,136.93,136.92,0.2152514]
[1726249928325,42.50615043,136.93,136.92,0.2152514]
[1726249928512,40.92328634,136.93,136.92,0.2152514]
[1726249928904,41.04877634,136.93,136.92,0.2152514]
[1726249929624,42.50615043,136.93,136.92,0.2152514]
[1726249930127,40.79779634,136.93,136.92,0.2152514]
[1726249930327,17.02091234,136.93,136.92,0.2152514]
[1726249931430,18.72926643,136.93,136.92,0.2152514]
[1726249931812,0.25098,136.92,136.88,0.5154834]
[1726249932016,24.027864,136.9,136.88,0.5154834]
[1726249932332,10.52267298,136.89,136.88,0.5154834]
[1726249932509,34.55053698,136.89,136.88,0.5154834]
[1726249933133,34.29213891,136.89,136.88,0.5154834]
[1726249933307,10.38976491,136.89,136.88,0.5154834]
[1726249936137,10.31822415,136.89,136.88,0.5154834]
[1726249936639,1.67994206,136.9,136.88,58.79517116]
[1726249937034,1.67994206,136.9,136.88,0.5154834]
[1726249941643,23.902374,136.89,136.88,0.5154834]
[1726249941812,24.027864,136.89,136.88,0.5154834]
[1726249942007,24.153354,136.89,136.88,0.5154834]
[1726249942239,23.902374,136.89,136.88,0.5154834]
[1726249942529,24.153354,136.89,136.88,0.5154834]
[1726249942943,25.61072809,136.89,136.88,0.5154834]